bitfinex/quotes_ETHUSD_20260225
["timestamp","ask_amount","ask_price","bid_price","bid_amount"]
[1772028702629,7.62160308,1973.0,1972.1,11.14647076]
[1772028702834,7.62160308,1973.0,1972.1,7.36647076]
[1772028703037,7.62160308,1973.0,1972.1,3.84082442]
[1772028703206,7.62160308,1973.0,1972.2,6.09782905]
[1772028703704,7.62160308,1973.0,1972.2,7.36541002]
[1772028711313,7.62160308,1973.0,1972.4,6.09782905]
[1772028711624,0.002,1973.0,1972.8,6.09782905]
[1772028712310,7.62157276,1973.0,1972.3,2.493]
[1772028712515,6.35245288,1972.9,1972.3,8.59082905]
[1772028713641,6.35245288,1972.9,1972.3,8.59182905]
[1772028714816,7.61968726,1972.8,1972.3,8.59182905]
[1772028715316,7.61968726,1972.8,1972.3,6.09882905]
[1772028716144,7.61968726,1972.8,1972.3,7.36637859]
[1772028716528,7.61968726,1972.8,1972.3,6.09882905]
[1772028716718,7.61968726,1972.8,1972.3,7.36638392]
[1772028716923,7.61968726,1972.8,1972.3,6.09882905]
[1772028718928,7.61968726,1972.8,1972.3,0.001]
[1772028721240,7.61968726,1972.8,1972.3,6.40347953]
[1772028721444,7.61968726,1972.8,1972.4,6.91726696]
[1772028721632,7.61968726,1972.8,1972.1,5.07164838]
[1772028721633,6.08429244,1972.7,1972.1,0.001]
[1772028721834,6.08429244,1972.4,1972.1,0.001]
[1772028722033,6.08429244,1972.6,1972.1,6.91826696]
[1772028722444,6.08429244,1972.6,1972.2,6.40247953]
[1772028723257,2.785,1972.7,1972.3,6.91726696]
[1772028723632,10.13664682,1972.7,1972.3,6.91726696]
[1772028723956,6.08429244,1972.6,1972.2,6.40247953]
[1772028724161,6.08429244,1972.6,1972.1,0.51578743]
[1772028724360,6.08429244,1972.6,1972.1,0.001]
[1772028724748,6.08429244,1972.6,1972.1,6.40347953]
[1772028724930,6.08429244,1972.6,1972.2,6.40247953]
[1772028725257,4.05235438,1972.7,1972.2,6.40247953]
[1772028725558,4.05235438,1972.7,1972.3,6.91726696]
[1772028725779,6.08429244,1972.6,1972.1,6.91826696]
[1772028725937,6.08429244,1972.4,1972.1,0.001]
[1772028726969,1.26735438,1972.7,1972.1,0.001]
[1772028727137,7.35164682,1972.7,1972.2,0.001]
[1772028731239,7.35164682,1972.7,1972.2,6.40347953]
[1772028731444,7.35164682,1972.7,1972.3,6.91726696]
[1772028731635,6.08429244,1972.7,1972.3,6.91726696]
[1772028731836,1.26729668,1972.8,1972.3,6.91726696]
[1772028732032,7.35350644,1972.9,1972.5,0.51478743]
[1772028732237,7.35350644,1972.9,1972.5,6.91726696]
[1772028732485,7.35350644,1972.9,1972.3,6.91726696]
[1772028732661,6.08429244,1972.8,1972.2,1.26861907]
[1772028732968,6.08429244,1972.8,1972.2,0.001]
[1772028734467,6.08429244,1972.6,1972.2,0.001]
[1772028735069,6.08429244,1972.6,1972.1,0.001]
[1772028735275,6.08429244,1972.5,1972.0,0.001]
[1772028737581,6.08429244,1972.3,1972.0,0.001]
[1772028738757,6.08429244,1972.3,1971.1,7.67080685]
[1772028738758,6.08429244,1972.2,1971.1,7.67080685]
[1772028738956,6.08429244,1972.2,1971.2,8.90047953]
[1772028739461,7.35191235,1972.2,1972.1,0.001]
[1772028739660,7.35191235,1972.2,1971.4,6.40247953]
[1772028739866,7.35191235,1972.2,1972.0,0.001]
[1772028740057,7.35191235,1972.2,1971.5,6.40547953]
[1772028740580,7.35191235,1972.2,1971.8,0.001]
[1772028742282,7.35191235,1972.2,1971.3,6.40247953]
[1772028743690,7.35191235,1972.2,1971.1,6.40247953]
[1772028743894,6.08429244,1972.0,1971.3,6.40247953]
[1772028744108,6.08429244,1972.0,1971.2,0.003]
[1772028744305,6.08429244,1972.0,1971.2,6.40247953]
[1772028745869,6.05972035,1971.8,1971.2,6.40247953]
[1772028746973,6.05972035,1971.8,1971.3,5.9033442]
[1772028747194,7.32753311,1971.9,1971.3,5.9033442]
[1772028747881,7.32753311,1971.9,1971.3,7.1715391]
[1772028748076,7.32753311,1971.9,1971.3,5.9033442]
[1772028750596,7.32753311,1971.9,1971.3,0.003]
[1772028751980,7.32753311,1971.9,1971.1,7.17685618]
[1772028752164,7.32753311,1971.9,1971.2,5.91152886]
[1772028752801,7.32753311,1971.9,1971.4,0.001]
[1772028755297,6.11288366,1971.8,1971.4,0.001]
[1772028755792,6.11288366,1971.8,1971.5,0.003]
[1772028756197,7.38068123,1972.0,1971.5,6.42682236]
[1772028756378,6.11288366,1972.0,1971.7,0.5152935]
[1772028756578,7.38256971,1972.1,1971.7,6.42382236]
[1772028756784,0.002,1972.1,1971.8,5.91152886]
[1772028761692,0.002,1972.1,1971.8,0.003]
[1772028762274,0.002,1972.1,1971.8,5.91152886]
[1772028766290,0.002,1972.1,1971.8,7.17940198]
[1772028766577,0.002,1972.1,1972.0,5.90852886]
[1772028767102,0.002,1972.1,1971.6,5.90852886]
[1772028767320,6.11488366,1972.1,1971.7,2.488]
[1772028768629,0.002,1972.1,1971.8,5.90852886]
[1772028771816,6.11488366,1972.1,1971.8,2.488]
[1772028773629,6.11288366,1972.0,1971.8,2.488]
[1772028774804,1.26973505,1972.1,1971.8,8.39652886]
[1772028775110,0.002,1972.1,1971.9,5.90852886]
[1772028775688,1.26969614,1972.1,1971.9,5.90852886]
[1772028776310,0.002,1972.1,1971.9,5.90852886]
[1772028779429,5.94598695,1972.1,1971.6,5.93000783]
[1772028779599,5.94598695,1972.1,1971.8,2.489]
[1772028781287,7.21370293,1972.1,1971.8,2.489]
[1772028782410,7.21370293,1972.1,1971.6,5.93000783]
[1772028782607,7.21370293,1972.1,1971.6,2.489]
[1772028783821,7.21370293,1972.1,1971.9,0.001]
[1772028783988,5.94398695,1971.9,1971.6,2.489]
[1772028784390,5.94398695,1971.9,1971.8,0.001]
[1772028785691,0.002,1972.2,1971.9,5.93000783]
[1772028787233,0.002,1972.2,1972.0,8.42000783]
[1772028787591,5.94598695,1972.2,1971.8,5.93100783]
[1772028787893,1.26768419,1972.1,1971.8,5.93100783]
[1772028789200,11.01651077,1972.2,1972.0,6.7025687]
[1772028789201,0.002,1972.2,1972.0,6.7025687]
[1772028789410,0.002,1972.2,1972.0,5.93000783]
[1772028791200,0.002,1972.5,1972.1,5.93000783]
[1772028792903,0.002,1972.5,1972.1,7.19763624]
[1772028793305,0.002,1972.5,1972.3,5.93000783]
[1772028793507,5.94598695,1972.8,1972.4,5.93000783]
[1772028793896,0.002,1972.8,1972.4,5.93000783]
[1772028794224,1.26923673,1972.8,1972.4,5.93000783]
[1772028794522,5.94398695,1972.4,1972.1,2.495]
[1772028795021,5.94398695,1972.2,1972.0,1.2888562]
[1772028797044,5.94398695,1972.4,1972.0,1.2888562]
[1772028798628,0.002,1972.1,1972.0,1.2888562]
[1772028799721,0.002,1972.1,1972.0,7.21886403]
[1772028800116,0.002,1972.1,1971.9,2.496]
[1772028800438,6.13730195,1972.1,1971.9,2.496]
[1772028801198,0.002,1972.1,1971.9,2.496]
[1772028801431,0.002,1972.1,1971.9,2.62772851]
[1772028802722,0.002,1972.1,1971.9,2.496]
[1772028803308,0.002,1972.4,1972.1,0.33104332]
[1772028803505,7.40579348,1972.4,1971.9,2.82704332]
[1772028804018,7.40579348,1972.4,1971.9,2.496]
[1772028805331,7.40579348,1972.4,1971.9,2.81471453]
[1772028806002,7.40579348,1972.4,1972.0,0.31090052]
[1772028807317,6.13830195,1972.4,1972.0,0.31090052]
[1772028807635,7.40581446,1972.4,1972.0,0.31090052]
[1772028810057,7.40581446,1972.4,1972.1,0.28501027]
[1772028810058,0.002,1972.4,1972.1,0.28501027]
[1772028810207,7.40653995,1972.8,1972.4,0.28301027]
[1772028810409,7.40653995,1972.8,1972.2,0.28301027]
[1772028812629,7.40653995,1972.8,1972.2,1.55062522]
[1772028812835,6.13730195,1972.6,1972.2,0.28301027]
[1772028813001,6.90986282,1972.6,1972.1,0.001]
[1772028813426,6.13730195,1972.6,1972.1,0.001]
[1772028814838,6.13730195,1972.6,1972.2,0.25319224]
[1772028815011,7.40466621,1972.6,1972.2,0.25319224]
[1772028815211,6.13730195,1972.6,1972.2,1.02575311]
[1772028815440,1.26930645,1972.7,1972.3,0.25319224]
[1772028815633,6.13930195,1972.7,1972.3,0.25319224]
[1772028816013,7.40660099,1972.7,1972.3,0.25319224]
[1772028817028,7.40660546,1972.7,1972.3,0.25319224]
[1772028819006,0.002,1972.7,1972.4,0.22965034]
[1772028819732,6.13930195,1972.7,1972.4,0.22965034]
[1772028820613,6.13930195,1972.7,1972.3,0.22383442]
[1772028821315,6.13930195,1972.7,1972.3,1.49134133]
[1772028822448,7.4066165,1972.7,1972.3,0.22383442]
[1772028822621,6.65207389,1972.6,1972.2,0.21229911]
[1772028822938,6.13730195,1972.6,1972.2,0.21229911]
[1772028823155,6.65207389,1972.5,1972.1,0.001]
[1772028823327,6.13730195,1972.4,1972.1,0.001]
[1772028824847,6.13730195,1972.2,1972.1,0.001]
[1772028827123,7.40483464,1972.4,1972.1,0.001]
[1772028828140,7.40483464,1972.4,1972.0,0.001]
[1772028828428,6.13680195,1972.3,1972.0,0.001]
[1772028830254,7.4044038,1972.3,1972.0,0.001]
[1772028834348,7.40436256,1972.3,1972.0,0.001]
[1772028836265,6.13680195,1972.3,1972.0,0.13558082]
[1772028837464,1.26754219,1972.4,1972.0,0.13558082]
[1772028837758,7.43236308,1972.4,1972.0,0.13558082]
[1772028838265,6.16482089,1972.4,1972.0,1.40331184]
[1772028838459,1.26749467,1972.4,1972.0,0.13558082]
[1772028838660,7.43231556,1972.4,1972.0,0.13558082]
[1772028839160,7.9470875,1972.4,1972.0,0.13558082]
[1772028839357,7.43231556,1972.4,1972.0,0.13558082]
[1772028839754,7.43231556,1972.4,1972.1,0.001]
[1772028839973,0.002,1972.9,1972.2,4.11817552]
[1772028840142,6.193428,1973.2,1972.5,0.51477194]
[1772028840344,0.26493642,1973.4,1972.9,0.51477194]
[1772028840742,2.043,1973.6,1973.0,0.19781063]
[1772028841052,6.197428,1973.5,1973.0,0.19781063]
[1772028841271,6.70819994,1973.4,1973.0,0.19781063]
[1772028841574,6.193428,1973.4,1973.0,0.19781063]
[1772028842141,3.82449791,1973.6,1973.0,0.19781063]
[1772028842354,6.197428,1973.5,1973.0,1.4649118]
[1772028843370,0.004,1973.5,1973.1,0.18656049]
[1772028843666,0.004,1973.5,1972.6,5.06942159]
[1772028843667,6.70819994,1973.4,1972.5,0.51477194]
[1772028843865,6.70819994,1973.2,1972.7,0.18088229]
[1772028844066,9.55419994,1973.2,1972.7,0.18088229]
[1772028844470,9.039428,1973.2,1972.8,0.18088229]
[1772028845262,2.846,1973.2,1972.8,0.18088229]
[1772028845469,2.846,1973.2,1972.9,0.17520456]
[1772028845775,2.846,1973.2,1972.7,1.44250221]
[1772028845968,0.004,1973.1,1972.7,1.44250221]
[1772028846136,6.197428,1973.1,1972.7,0.17520456]
[1772028846463,7.46452503,1973.1,1972.5,0.16955994]
[1772028846666,6.71219994,1973.0,1972.4,1.26748609]
[1772028846866,6.71219994,1973.0,1972.4,1.43144678]
[1772028847038,6.197428,1973.0,1972.4,1.94621872]
[1772028847243,6.197428,1973.0,1972.5,0.16396069]
[1772028848858,7.46454539,1973.0,1972.5,0.16396069]
[1772028849056,7.46454539,1973.0,1972.4,0.51477194]
[1772028849257,6.193428,1972.9,1972.4,1.78225766]
[1772028850247,6.197428,1972.8,1972.4,1.78225766]
[1772028850442,6.197428,1972.8,1972.3,0.15282117]
[1772028850649,6.197428,1972.7,1972.1,1.26868336]
[1772028850874,6.193428,1972.5,1972.1,0.001]
[1772028851176,6.197428,1972.4,1972.1,0.001]
[1772028851471,6.193428,1972.3,1972.1,0.001]
[1772028851672,1.78213481,1972.6,1972.1,0.001]
[1772028851673,6.193428,1972.6,1972.1,0.65752064]
[1772028851858,6.193428,1972.6,1972.1,0.51577194]
[1772028852973,7.46085114,1972.6,1972.1,0.51577194]
[1772028853382,7.46085114,1972.6,1972.5,0.001]
[1772028854281,7.46079087,1972.6,1972.5,0.001]
[1772028857188,7.46079087,1972.6,1972.3,0.001]
[1772028857387,9.047428,1972.5,1972.3,0.001]
[1772028857961,2.854,1972.5,1972.3,0.001]
[1772028858261,9.047428,1972.5,1972.3,0.001]
[1772028858966,2.854,1972.5,1972.3,0.001]
[1772028859167,2.854,1972.5,1972.3,1.88194066]
[1772028859360,2.854,1972.5,1972.3,0.61441652]
[1772028859962,2.854,1972.5,1972.3,1.88194615]
[1772028860161,2.854,1972.5,1972.3,0.61441652]
[1772028860592,2.854,1972.5,1972.3,1.88196813]
[1772028860765,4.12428126,1972.8,1972.4,0.08801532]
[1772028861093,10.31766798,1972.8,1972.4,0.08801532]
[1772028861598,9.050428,1972.8,1972.4,0.08801532]
[1772028861782,10.31767034,1972.8,1972.4,0.08801532]
[1772028862090,6.193428,1972.7,1972.4,0.08801532]
[1772028862892,6.193428,1972.7,1972.3,0.51577194]
[1772028863264,6.193428,1972.7,1972.3,0.59322353]
[1772028863764,7.46075828,1972.7,1972.3,0.59322353]
[1772028864196,7.46075828,1972.7,1972.3,0.07845159]
[1772028864380,6.193428,1972.6,1972.1,0.07322074]
[1772028864687,9.053428,1972.5,1972.1,0.07322074]
[1772028865471,6.193428,1972.4,1972.1,0.001]
[1772028865682,4.12743378,1972.5,1972.1,0.06282884]
[1772028865900,10.32086178,1972.5,1972.1,0.06282884]
[1772028866295,6.193428,1972.4,1972.1,0.06282884]
[1772028866694,6.193428,1972.4,1972.1,0.57760078]
[1772028867486,6.193428,1972.4,1972.1,0.51577194]
[1772028868300,6.193428,1972.4,1972.3,0.001]
[1772028872096,2.86,1972.5,1972.3,0.03074431]
[1772028872301,2.86,1972.5,1972.3,0.001]
[1772028872499,4.12743863,1972.5,1972.3,0.001]
[1772028872805,10.32086663,1972.5,1972.3,0.001]
[1772028873376,6.193428,1972.4,1972.3,0.001]
[1772028874003,6.193428,1972.4,1971.9,0.001]
[1772028874506,7.46098053,1972.4,1971.9,0.02079261]
[1772028879505,7.46098053,1972.4,1971.9,0.001]
[1772028880880,7.46098053,1972.4,1971.9,0.51577194]
[1772028881086,7.46098053,1972.4,1972.0,0.001]
[1772028881296,6.195428,1972.3,1972.0,0.001]
[1772028881499,2.877,1972.2,1972.0,0.001]
[1772028882103,9.070428,1972.2,1972.0,0.001]
[1772028882715,10.3381004,1972.2,1972.0,0.001]
[1772028882884,6.193428,1972.1,1972.0,0.001]
[1772028883085,4.14462386,1972.2,1972.0,0.001]
[1772028883488,10.33805186,1972.2,1972.0,0.001]
[1772028884684,0.002,1972.3,1972.0,0.001]
[1772028885612,7.46298746,1972.3,1972.0,0.001]
[1772028887315,0.002,1972.3,1972.0,0.001]
[1772028887794,6.195428,1972.3,1972.0,0.001]
[1772028889400,1.26761991,1972.2,1972.0,0.001]
[1772028889583,2.887,1972.1,1972.0,0.001]
[1772028889786,2.889,1972.3,1972.0,0.001]
[1772028890919,9.082428,1972.3,1972.0,0.001]
[1772028891215,10.34999229,1972.3,1972.0,0.001]
[1772028893350,4.15656429,1972.3,1972.0,0.001]
[1772028893514,6.193428,1972.2,1972.0,0.001]
[1772028894692,7.46106041,1972.2,1972.0,0.001]
[1772028895796,2.889,1972.3,1972.0,0.001]
[1772028896127,10.34998478,1972.3,1972.0,0.001]
[1772028896417,6.193428,1972.2,1972.0,0.001]
[1772028896718,7.46111219,1972.1,1972.0,0.001]
[1772028900024,10.36011219,1972.1,1972.0,0.001]
[1772028900321,10.36011219,1972.1,1971.8,0.001]
[1772028900322,6.192928,1972.0,1971.8,0.001]
[1772028900503,2.899,1971.9,1971.5,0.001]
[1772028900703,6.192928,1971.8,1971.6,0.001]
[1772028900903,6.192928,1971.8,1971.5,0.001]
[1772028902041,1.26787706,1971.8,1971.4,0.001]
[1772028902204,1.26787706,1971.8,1971.5,0.001]
[1772028902803,10.35979241,1971.9,1971.5,0.001]
[1772028903135,4.16686441,1971.9,1971.5,0.001]
[1772028903302,2.899,1971.9,1971.6,0.7724712]
[1772028903504,2.899,1971.9,1971.5,0.001]
[1772028903909,2.899,1971.9,1971.6,0.7724712]
[1772028904113,2.899,1971.9,1971.6,2.04045598]
[1772028904412,10.35974846,1971.9,1971.7,0.001]
[1772028904738,10.35974846,1971.9,1971.4,2.04158457]
[1772028905537,9.091928,1971.9,1971.4,2.04158457]
[1772028905842,9.091928,1971.9,1971.5,0.001]
[1772028906051,2.899,1971.9,1971.5,0.002]
[1772028907237,2.899,1971.9,1971.6,0.7724712]
[1772028908325,2.899,1971.9,1971.6,2.04047175]
[1772028908638,2.899,1971.9,1971.6,0.7724712]
[1772028909639,2.899,1971.9,1971.5,1.27006852]
[1772028909813,6.192928,1971.8,1971.5,0.002]
[1772028910147,7.4608104,1971.8,1971.5,0.002]
[1772028910729,6.192928,1971.8,1971.5,0.002]
[1772028910929,7.46081134,1971.8,1971.5,0.002]
[1772028911136,6.192928,1971.8,1971.5,0.002]
[1772028911450,4.16685853,1971.9,1971.5,0.002]
[1772028911748,10.35978653,1971.9,1971.5,0.002]
[1772028912949,6.192928,1971.8,1971.5,0.002]
[1772028913133,4.16685853,1971.9,1971.4,0.001]
[1772028913134,6.192928,1971.6,1971.4,0.001]
[1772028913333,9.097928,1971.5,1971.4,0.001]
[1772028914257,2.905,1971.5,1971.4,0.002]
[1772028916850,10.36599799,1971.5,1971.4,0.001]
[1772028917052,9.097928,1971.5,1971.4,0.001]
[1772028917418,9.097928,1971.5,1971.1,0.001]
[1772028917419,6.192428,1971.4,1971.1,0.001]
[1772028918043,10.36549799,1971.5,1971.1,0.001]
[1772028918364,6.192428,1971.4,1971.1,0.001]
[1772028919736,6.192428,1971.4,1971.2,0.001]
[1772028920763,9.097428,1971.5,1971.2,0.001]
[1772028920940,10.36550435,1971.5,1971.2,0.001]
[1772028921629,9.097428,1971.5,1971.2,0.001]
[1772028923057,6.192428,1971.7,1971.2,1.19303153]
[1772028923259,6.192428,1971.7,1971.2,0.7734712]
[1772028923260,9.104428,1971.7,1971.2,0.7734712]
[1772028923467,9.104428,1971.7,1971.3,1.26819865]
[1772028924466,6.192428,1971.4,1971.2,0.001]
[1772028924675,6.192428,1971.2,1970.9,0.001]
[1772028924877,6.191928,1971.0,1970.3,1.26879787]
[1772028925047,9.104928,1970.9,1970.3,1.26879787]
[1772028925246,9.104928,1970.9,1970.1,3.35904376]
[1772028925449,2.913,1971.2,1970.7,0.7734712]
[1772028925648,5.79365597,1971.1,1970.7,0.7734712]
[1772028925879,2.88065797,1971.0,1970.7,0.001]
[1772028926058,6.191928,1970.9,1970.7,0.001]
[1772028926642,2.913,1971.1,1970.7,0.7734712]
[1772028927164,2.913,1971.4,1970.9,0.7724712]
[1772028927367,9.104928,1971.4,1970.9,2.04092564]
[1772028927572,9.104928,1971.3,1970.8,1.26847159]
[1772028928866,2.913,1971.3,1970.9,0.7724712]
[1772028929270,2.913,1971.3,1970.8,1.26847159]
[1772028929448,9.104928,1971.3,1970.8,1.26847159]
[1772028930469,2.915,1971.4,1970.9,0.7724712]
[1772028930671,6.191928,1971.3,1970.8,1.26847159]
[1772028931864,6.191928,1971.3,1970.8,1.26947159]
[1772028932051,6.193928,1971.3,1970.8,1.26947159]
[1772028934964,0.002,1971.3,1970.8,1.26947159]
[1772028935177,6.193928,1971.3,1970.8,1.26947159]
[1772028935555,2.913,1971.2,1970.8,1.26947159]
[1772028935760,6.191928,1971.1,1970.8,0.001]
[1772028936169,2.913,1971.2,1970.8,0.7734712]
[1772028936372,2.913,1971.1,1970.8,0.7734712]
[1772028937280,0.002,1971.4,1971.0,0.7724712]
[1772028937477,0.002,1971.6,1971.2,6.31662494]
[1772028937678,5.63740051,1971.6,1971.2,7.58487822]
[1772028938080,5.63740051,1971.6,1971.2,0.7724712]
[1772028938411,5.63740051,1971.6,1971.1,6.81244127]
[1772028938552,5.63540051,1971.4,1970.8,5.04951114]
[1772028940053,5.63540051,1971.2,1970.8,5.04951114]
[1772028940255,5.63540051,1971.2,1970.8,1.26951114]
[1772028940463,5.63540051,1971.2,1970.8,1.26951381]
[1772028941481,5.63540051,1971.2,1970.8,0.001]
[1772028941684,5.63540051,1971.2,1970.7,0.001]
[1772028942681,5.63540051,1971.0,1970.7,0.001]
[1772028944486,5.63540051,1971.0,1970.5,0.001]
[1772028944794,5.63540051,1970.8,1970.5,0.001]
[1772028946386,5.63540051,1970.8,1970.7,0.001]
[1772028946553,2.916,1970.9,1970.7,0.001]
[1772028946756,8.55140051,1970.9,1970.7,0.001]
[1772028947990,9.81986508,1970.9,1970.7,0.001]
[1772028948563,8.55140051,1970.9,1970.7,0.001]
[1772028948783,9.81985957,1970.9,1970.7,0.001]
[1772028949392,5.63540051,1970.8,1970.7,0.001]
[1772028952595,0.002,1971.5,1970.7,5.54515374]
[1772028952803,0.004,1971.5,1970.9,2.57917679]
[1772028953095,5.07355355,1971.8,1970.9,2.57917679]
[1772028953096,1e-08,1971.8,1970.9,2.57917679]
[1772028953303,1e-08,1971.8,1971.2,2.57917679]
[1772028953597,0.00400001,1971.8,1971.3,5.54415374]
[1772028954363,1e-08,1971.8,1971.3,5.54415374]
[1772028954696,1e-08,1971.8,1971.4,6.81228806]
[1772028955203,1e-08,1971.8,1971.4,5.54415374]
[1772028956403,1e-08,1971.8,1971.2,5.80772896]
[1772028956578,0.004,1971.7,1971.2,5.80772896]
[1772028956776,5.95682934,1971.7,1971.2,5.80772896]
[1772028957072,5.95682934,1971.7,1971.2,7.07597253]
[1772028959079,0.004,1971.6,1971.2,7.07597253]
[1772028959606,0.006,1971.6,1971.2,7.07597253]
[1772028959987,0.002,1971.6,1971.3,5.80772896]
[1772028961312,0.002,1971.6,1971.4,1.26813432]
[1772028961610,0.002,1971.6,1971.4,7.07586328]
[1772028961819,0.002,1971.9,1971.6,5.80772896]
[1772028962106,0.002,1972.4,1971.8,6.32289503]
[1772028962107,5.95482934,1972.4,1971.8,6.32289503]
[1772028962311,0.002,1972.4,1972.1,5.80772896]
[1772028962531,0.002,1972.9,1972.4,5.88964896]
[1772028962680,0.002,1972.9,1972.7,0.51516607]
[1772028962879,0.002,1972.8,1972.6,2.429]
[1772028963185,0.002,1973.0,1972.6,2.429]
[1772028963380,0.002,1973.0,1972.7,1.78246469]
[1772028963616,0.002,1973.0,1972.7,6.32289503]
[1772028964578,5.95282934,1973.6,1972.9,6.32289503]
[1772028964784,5.95282934,1973.6,1973.0,0.51516607]
[1772028964986,5.95282934,1973.6,1973.0,6.32289503]
[1772028965412,5.95282934,1973.6,1973.0,5.80772896]
[1772028965910,7.21957957,1973.6,1973.0,1.26707539]
[1772028966119,7.21957957,1973.6,1972.6,1.26730626]
[1772028966120,5.95282934,1973.5,1972.6,1.26730626]
[1772028966617,6.533,1973.4,1971.1,5.07329464]
[1772028966792,5.95282934,1972.9,1971.7,2.57171033]
[1772028966986,5.95282934,1972.8,1971.9,2.57171033]
[1772028967482,5.95282934,1972.8,1972.3,2.57171033]
[1772028967683,4.0253168,1973.6,1972.4,1.26749138]
[1772028967684,7.21994069,1973.0,1972.4,1.26749138]
[1772028967884,7.21994069,1973.0,1972.4,6.33686569]
[1772028968187,7.21994069,1973.0,1972.1,3.70167316]
[1772028968441,7.21994069,1973.0,1972.1,9.50940212]
[1772028968599,7.21994069,1973.0,1972.2,12.14459465]
[1772028969120,7.21994069,1973.0,1972.2,6.33686569]
[1772028969485,7.21994069,1973.0,1972.0,3.70274564]
[1772028969685,7.21994069,1973.0,1972.1,6.33686569]
[1772028969915,5.95282934,1972.8,1971.7,1.26789869]
[1772028970122,1.26711135,1973.0,1971.5,3.70606999]
[1772028970123,5.95282934,1972.6,1971.5,3.70606999]
[1772028970286,5.95282934,1972.6,1971.6,5.80772896]
[1772028970486,5.95282934,1972.6,1971.7,8.37943929]
[1772028971498,5.95282934,1972.6,1972.2,0.001]
[1772028971995,5.95282934,1972.6,1972.2,6.33786569]
[1772028972313,5.95282934,1973.0,1972.2,12.14559465]
[1772028972625,5.95282934,1973.0,1972.3,6.33686569]
[1772028974093,7.21995485,1973.0,1972.4,1.26749138]
[1772028974919,5.95282934,1973.0,1972.4,1.26749138]
[1772028975290,1.26704421,1973.1,1972.5,6.33686569]
[1772028975791,7.2198175,1973.2,1972.5,6.33686569]
[1772028975994,7.2198175,1973.2,1972.5,14.71630498]
[1772028976326,7.2198175,1973.2,1972.6,1.26736287]
[1772028976514,1.26694167,1973.3,1972.6,7.07509183]
[1772028976721,1.26694167,1973.3,1972.7,6.33686569]
[1772028977519,7.21977101,1973.3,1972.6,1.26736287]
[1772028977726,7.21977101,1973.3,1972.7,6.33686569]
[1772028977894,7.22164979,1973.5,1972.7,12.14459465]
[1772028978090,0.002,1973.5,1972.9,2.57171033]
[1772028978294,0.002,1973.5,1972.9,1.26717015]
[1772028978826,7.57628109,1973.9,1972.9,1.26717015]
[1772028978827,5.06406605,1974.7,1973.5,5.80772896]
[1772028979021,7.21890854,1974.6,1973.6,8.37943929]
[1772028979300,7.21890854,1974.6,1973.6,6.33686569]
[1772028979703,5.95282934,1974.5,1973.6,8.90857602]
[1772028979902,5.95282934,1974.5,1973.7,5.80772896]
[1772028980109,5.95282934,1974.5,1973.6,6.33686569]
[1772028980321,1.26620745,1974.4,1973.6,13.41125626]
[1772028980634,7.21898572,1974.5,1973.7,14.71630498]
[1772028980991,1.26615638,1974.5,1973.8,5.80772896]
[1772028981629,0.85,1975.0,1974.1,8.37943929]
[1772028981931,1.26591845,1974.9,1974.2,5.80772896]
[1772028982605,2.92,1975.5,1974.7,2.57171033]
[1772028982925,7.37569674,1975.7,1975.1,2.57171033]
[1772028983230,7.37569674,1975.7,1974.8,4.22101077]
[1772028984292,7.37569674,1975.7,1974.6,1.946]
[1772028984500,7.37569674,1975.7,1974.7,5.48698622]
[1772028984723,7.37569674,1975.7,1974.7,4.22101077]
[1772028985223,7.37569674,1975.7,1974.7,8.05873271]
[1772028985435,7.37569674,1975.7,1974.9,2.57171033]
[1772028985436,5.95482934,1975.6,1974.9,2.57171033]
[1772028985822,0.002,1975.6,1975.0,10.18869256]
[1772028986009,0.002,1975.6,1975.1,2.57171033]
[1772028986203,0.002,1975.6,1975.1,5.01571033]
[1772028986406,0.002,1975.6,1975.1,10.98339212]
[1772028986833,1.26511816,1976.1,1975.3,8.53939212]
[1772028987035,7.60005516,1976.6,1975.5,8.53939212]
[1772028987036,3.80520644,1976.6,1975.5,8.53939212]
[1772028987244,6.1304204,1976.3,1975.4,4.22101077]
[1772028987445,6.1304204,1976.1,1974.9,3.70988298]
[1772028987850,5.49471033,1976.2,1975.0,4.22101077]
[1772028987851,6.1304204,1975.8,1975.0,4.22101077]
[1772028988843,7.39579469,1975.7,1974.6,1.979]
[1772028989153,7.39579469,1975.7,1974.7,4.22101077]
[1772028989334,7.39579469,1975.7,1974.7,10.33741037]
[1772028989538,7.39579469,1975.7,1975.0,2.57171033]
[1772028989757,7.39579469,1975.7,1974.8,6.1163996]
[1772028990046,7.39579469,1975.7,1974.9,4.22101077]
[1772028991051,7.39579469,1975.7,1975.0,1.26582278]
[1772028991419,7.39579469,1975.7,1974.9,9.28433917]
[1772028991420,7.39579469,1975.7,1974.9,5.48685293]
[1772028992014,7.39579469,1975.7,1974.9,7.38224176]
[1772028992917,1.26531025,1975.8,1975.0,12.9091207]
[1772028993132,5.063104,1975.9,1975.1,7.38215829]
[1772028993334,1.26724621,1975.9,1975.1,9.82515829]
[1772028993551,1.26724621,1975.9,1975.2,6.1163996]
[1772028993754,6.15790917,1975.9,1975.2,4.22101077]
[1772028994262,6.15590917,1975.7,1975.2,4.22101077]
[1772028994828,6.15590917,1975.4,1974.6,1.26604804]
[1772028995022,6.15590917,1975.4,1974.6,7.38244764]
[1772028995246,1.26563053,1975.3,1974.5,1.26609945]
[1772028995565,1.26563053,1975.3,1974.6,4.22101077]
[1772028995848,7.4215397,1975.3,1974.6,4.22101077]
[1772028996039,6.15590917,1975.3,1974.6,4.22101077]
[1772028997350,1.26569461,1975.2,1974.6,4.22101077]
[1772028997851,1.26569461,1975.2,1974.6,5.48708963]
[1772028998561,1.26569461,1975.2,1974.6,11.60348923]
[1772028999426,7.42134751,1975.6,1974.7,8.68810993]
[1772028999627,7.42134751,1975.6,1974.7,6.1163996]
[1772029000131,0.002,1975.1,1974.8,4.22101077]
[1772029000325,0.002,1975.1,1974.7,12.9091207]
[1772029000555,0.002,1975.2,1974.7,12.9091207]
[1772029000742,0.002,1975.2,1974.7,10.33741037]
[1772029001066,0.002,1975.2,1974.8,6.1163996]
[1772029001266,0.002,1975.2,1974.7,6.7927211]